[Event "European Online Club-ch-B 2021"]
[Site "Online"]
[Date "2021.03.27"]
[Round "1.13"]
[White "Santos Latasa, Jaime"]
[Black "Demidov, Mikhail"]
[Result "0-1"]
[ECO "B04"]
[WhiteElo "2608"]
[BlackElo "2523"]
[Annotator "ChessBase"]
[PlyCount "162"]
[EventDate "2021.03.27"]
[EventType "team-tourn"]
[EventCountry "NET"]
[SourceTitle "playchess.com"]
[Source "ChessBase"]
[SourceQuality "1"]
[TimeControl "900+5"]

1. e4 {[%emt 0:00:00]} Nf6 {[%emt 0:00:18]} 2. e5 {[%emt 0:00:04]} Nd5 {[%emt 0:00:04]} 3. d4 {[%emt 0:00:01]} d6 {[%emt 0:00:01]} 4. Nf3 {[%emt 0:00:02]} Nb6 {[%emt 0:00:02]} 5. a4 {[%emt 0:00:10]} a5 {[%emt 0:00:07]} 6. Nc3 {[%emt 0:00:15]} Bg4 {[%emt 0:00:30]} 7. h3 {[%emt 0:00:41]} Bf5 {[%emt 0:00:15]} 8. Bf4 {[%emt 0:00:46]} e6 {[%emt 0:00:07]} 9. Bd3 {[%emt 0:00:42]} Bxd3 {[%emt 0:00:10]} 10. Qxd3 {[%emt 0:00:02]} Nc6 {[%emt 0:00:02]} 11. Qb5 {[%emt 0:01:06]} d5 {[%emt 0:00:12]} 12. O-O {[%emt 0:00:11]} Qd7 {[%emt 0:00:10]} 13. Qe2 {[%emt 0:00:10]} Be7 {[%emt 0:02:00]} 14. b3 {[%emt 0:02:00]} O-O {[%emt 0:01:26]} 15. Nd1 {[%emt 0:01:11]} f6 {[%emt 0:00:33]} 16. Nb2 {[%emt 0:00:14]} Rae8 {[%emt 0:03:24]} 17. Nd3 {[%emt 0:00:20]} f5 {[%emt 0:00:12]} 18. c3 {[%emt 0:00:11]} Nd8 {[%emt 0:00:22]} 19. h4 {[%emt 0:00:24]} Nf7 {[%emt 0:00:03]} 20. Nc5 {[%emt 0:00:38]} Qc6 {[%emt 0:01:09]} 21. Qb5 {[%emt 0:00:58]} Bxc5 {[%emt 0:00:47]} 22. dxc5 {[%emt 0:00:03]} Nd7 {[%emt 0:00:04]} 23. b4 {[%emt 0:00:03]} Ra8 {[%emt 0:01:44]} 24. Rfe1 {[%emt 0:00:44]} h6 {[%emt 0:01:50]} 25. h5 {[%emt 0:00:11]} Qxb5 {[%emt 0:00:22]} 26. axb5 {[%emt 0:00:03]} axb4 {[%emt 0:00:01]} 27. cxb4 {[%emt 0:00:02]} Rfc8 {[%emt 0:00:09]} 28. g3 {[%emt 0:01:03]} Nf8 {[%emt 0:00:21]} 29. Nd4 {[%emt 0:00:06]} Kh7 {[%emt 0:00:05]} 30. c6 {[%emt 0:00:18]} b6 {[%emt 0:00:23]} 31. Ra6 {[%emt 0:00:14]} Re8 {[%emt 0:00:18]} 32. Rea1 {[%emt 0:00:06]} Rac8 {[%emt 0:00:02]} 33. Ra7 {[%emt 0:00:08]} g5 {[%emt 0:00:01]} 34. hxg6+ {[%emt 0:00:07]} Nxg6 {[%emt 0:00:02]} 35. Re1 {[%emt 0:00:35]} h5 {[%emt 0:00:06]} 36. Nf3 {[%emt 0:00:14]} Kg7 {[%emt 0:00:07]} 37. Kg2 {[%emt 0:00:32]} Rh8 {[%emt 0:00:06]} 38. Bg5 {[%emt 0:00:11]} Nxg5 {[%emt 0:00:23]} 39. Nxg5 {[%emt 0:00:02]} Nf8 {[%emt 0:00:01]} 40. Nf3 {[%emt 0:00:07]} Ng6 {[%emt 0:00:02]} 41. Nd4 {[%emt 0:00:03]} Kf7 {[%emt 0:00:02]} 42. f4 {[%emt 0:00:16]} h4 {[%emt 0:00:04]} 43. Rh1 {[%emt 0:00:02]} hxg3 {[%emt 0:00:09]} 44. Rxh8 {[%emt 0:00:02]} Nxh8 {[%emt 0:00:01]} 45. Kxg3 {[%emt 0:00:03]} Ng6 {[%emt 0:00:01]} 46. Ne2 {[%emt 0:00:15]} Ke7 {[%emt 0:00:04]} 47. Kf3 {[%emt 0:00:02]} Kf7 {[%emt 0:00:05]} 48. Nc3 {[%emt 0:00:05]} Nh4+ {[%emt 0:00:15]} 49. Kg3 {[%emt 0:00:06]} Ng6 {[%emt 0:00:02]} 50. Na4 {[%emt 0:00:03]} Ne7 {[%emt 0:00:05]} 51. Kf3 {[%emt 0:00:03]} d4 {[%emt 0:00:03]} 52. Ke2 {[%emt 0:00:42]} Nd5 {[%emt 0:00:03]} 53. Kd3 {[%emt 0:00:01]} Nxf4+ {[%emt 0:00:09]} 54. Kxd4 {[%emt 0:00:03]} Nd5 {[%emt 0:00:04]} 55. Nb2 {[%emt 0:00:07]} Rh8 {[%emt 0:00:07]} 56. Nc4 {[%emt 0:00:04]} Rh4+ {[%emt 0:00:02]} 57. Kd3 {[%emt 0:00:01]} Nxb4+ {[%emt 0:00:02]} 58. Kc3 {[%emt 0:00:02]} Nd5+ {[%emt 0:00:02]} 59. Kd3 {[%emt 0:00:01]} Kg6 {[%emt 0:00:03]} 60. Ra8 {[%emt 0:00:05]} Nb4+ {[%emt 0:00:04]} 61. Kc3 {[%emt 0:00:02]} Nd5+ {[%emt 0:00:01]} 62. Kd3 {[%emt 0:00:01]} f4 {[%emt 0:00:04]} 63. Re8 {[%emt 0:00:11]} Nb4+ {[%emt 0:00:06]} 64. Kc3 {[%emt 0:00:06]} Nd5+ {[%emt 0:00:02]} 65. Kd3 {[%emt 0:00:01]} Kf7 {[%emt 0:00:06]} 66. Rd8 {[%emt 0:00:12]} Nb4+ {[%emt 0:00:04]} 67. Kc3 {[%emt 0:00:05]} Nd5+ {[%emt 0:00:01]} 68. Kd3 {[%emt 0:00:02]} f3 {[%emt 0:00:04]} 69. Ra8 {[%emt 0:00:05]} Nb4+ {[%emt 0:00:05]} 70. Kc3 {[%emt 0:00:03]} Nd5+ {[%emt 0:00:02]} 71. Kd3 {[%emt 0:00:01]} Rh1 {[%emt 0:00:04]} 72. Nd2 {[%emt 0:00:09]} Rd1 {[%emt 0:00:12]} 73. Kc2 {[%emt 0:00:13]} Ne3+ {[%emt 0:00:02]} 74. Kd3 {[%emt 0:00:02]} Nd5 {[%emt 0:00:30]} 75. Kc2 {[%emt 0:00:04]} Ne3+ {[%emt 0:00:05]} 76. Kd3 {[%emt 0:00:01]} f2 {[%emt 0:00:12]} 77. Kxe3 {[%emt 0:00:03]} Rxd2 {[%emt 0:00:01]} 78. Ra1 {[%emt 0:00:02]} Rb2 {[%emt 0:00:03]} 79. Rf1 {[%emt 0:00:03]} Kg6 {[%emt 0:00:02]} 80. Ke4 {[%emt 0:00:02]} Kg5 {[%emt 0:00:02]} 81. Ke3 {[%emt 0:00:08]} Kg4 {[%emt 0:00:05]} 0-1

[Event "European Online Club-ch-B 2021"]
[Site "Online"]
[Date "2021.03.27"]
[Round "1.14"]
[White "Andriasyan, Siranush"]
[Black "Admiraal, Miguoel"]
[Result "0-1"]
[ECO "B19"]
[WhiteElo "2298"]
[BlackElo "2475"]
[Annotator "ChessBase"]
[PlyCount "64"]
[EventDate "2021.03.27"]
[EventType "team-tourn"]
[EventCountry "NET"]
[SourceTitle "playchess.com"]
[Source "ChessBase"]
[SourceQuality "1"]
[TimeControl "900+5"]

1. e4 {[%emt 0:00:00]} c6 {[%emt 0:00:02]} 2. d4 {[%emt 0:00:03]} d5 {[%emt 0:00:02]} 3. Nc3 {[%emt 0:00:02]} dxe4 {[%emt 0:00:01]} 4. Nxe4 {[%emt 0:00:02]} Bf5 {[%emt 0:00:01]} 5. Ng3 {[%emt 0:00:02]} Bg6 {[%emt 0:00:01]} 6. h4 {[%emt 0:00:03]} h6 {[%emt 0:00:01]} 7. Nf3 {[%emt 0:00:03]} e6 {[%emt 0:00:01]} 8. h5 {[%emt 0:00:03]} Bh7 {[%emt 0:00:02]} 9. Bd3 {[%emt 0:00:03]} Bxd3 {[%emt 0:00:01]} 10. Qxd3 {[%emt 0:00:02]} Nf6 {[%emt 0:00:01]} 11. Bf4 {[%emt 0:00:03]} Bb4+ {[%emt 0:00:02]} 12. c3 {[%emt 0:00:27]} Bd6 {[%emt 0:00:02]} 13. Bxd6 {[%emt 0:00:07]} Qxd6 {[%emt 0:00:01]} 14. O-O-O {[%emt 0:00:05]} Nbd7 {[%emt 0:00:02]} 15. Ne4 {[%emt 0:00:08]} Nxe4 {[%emt 0:00:01]} 16. Qxe4 {[%emt 0:00:04]} O-O {[%emt 0:00:03]} 17. Kb1 {[%emt 0:00:16]} a5 {[%emt 0:00:13]} 18. Qe2 {[%emt 0:00:30]} a4 {[%emt 0:00:06]} 19. g4 {[%emt 0:00:10]} a3 {[%emt 0:00:01]} 20. b3 {[%emt 0:00:06]} Qf4 {[%emt 0:00:37]} 21. g5 {[%emt 0:00:49]} hxg5 {[%emt 0:00:11]} 22. h6 {[%emt 0:00:25]} g6 {[%emt 0:00:11]} 23. h7+ {[%emt 0:00:57]} Kh8 {[%emt 0:00:03]} 24. Rdg1 {[%emt 0:00:32]} Ra5 {[%emt 0:02:13]} 25. Rg3 {[%emt 0:02:41]} Nf6 {[%emt 0:00:08]} 26. Nd2 {[%emt 0:00:20]} Rf5 {[%emt 0:00:45]} 27. Rf3 {[%emt 0:01:30]} Qg4 {[%emt 0:00:08]} 28. Qe3 {[%emt 0:00:34]} Ne4 {[%emt 0:01:24]} 29. Rxf5 {[%emt 0:01:12]} Nxd2+ {[%emt 0:00:02]} 30. Qxd2 {[%emt 0:00:03]} Qe4+ {[%emt 0:00:02]} 31. Kc1 {[%emt 0:00:47]} Qxh1+ {[%emt 0:00:04]} 32. Kc2 {[%emt 0:00:01]} Qe4+ {[%emt 0:00:03]} 0-1

[Event "European Online Club-ch-B 2021"]
[Site "Online"]
[Date "2021.03.27"]
[Round "1.15"]
[White "Matnadze, Ana"]
[Black "Naudion, Gregoire"]
[Result "1-0"]
[ECO "E68"]
[WhiteElo "2421"]
[BlackElo "2146"]
[Annotator "NA"]
[PlyCount "29"]
[EventDate "2021.03.27"]
[EventType "team-tourn"]
[EventCountry "NET"]
[SourceTitle "playchess.com"]
[Source "ChessBase"]
[SourceQuality "1"]
[TimeControl "900+5"]

1. d4 {[%emt 0:00:00]} g6 {[%emt 0:00:06]} 2. Nf3 {[%emt 0:00:07]} Bg7 {[%emt 0:00:04]} 3. g3 {[%emt 0:00:08]} Nf6 {[%emt 0:00:03]} 4. Bg2 {[%emt 0:00:07]} O-O {[%emt 0:00:02]} 5. O-O {[%emt 0:00:15]} d6 {[%emt 0:00:02]} 6. c4 {[%emt 0:00:08]} Nbd7 {[%emt 0:00:05]} 7. Nc3 {[%emt 0:00:03]} e5 {[%emt 0:00:06]} 8. h3 {[%emt 0:00:04]} Re8 {[%emt 0:00:05]} 9. e4 {[%emt 0:00:05]} exd4 {[%emt 0:00:09]} 10. Nxd4 {[%emt 0:00:03]} Nc5 {[%emt 0:00:13]} 11. Re1 {[%emt 0:00:04]} h6 {[%emt 0:00:58]} 12. Qc2 {[%emt 0:00:17]} Ne6 {[%emt 0:02:34]} 13. Nb3 {[%emt 0:00:30]} Ng5 {[%emt 0:00:50]} 14. Kh2 {[%emt 0:01:57]} Bxh3 {[%emt 0:05:32]} 15. Bxg5 {[%emt 0:00:24]} 1-0

[Event "European Online Club-ch-B 2021"]
[Site "Online"]
[Date "2021.03.27"]
[Round "1.16"]
[White "Pillard, Valentin"]
[Black "De Rover, Yong Hoon"]
[Result "0-1"]
[ECO "C01"]
[WhiteElo "2103"]
[BlackElo "2349"]
[Annotator "NA"]
[PlyCount "150"]
[EventDate "2021.03.27"]
[EventType "team-tourn"]
[EventCountry "NET"]
[SourceTitle "playchess.com"]
[Source "ChessBase"]
[SourceQuality "1"]
[TimeControl "900+5"]

1. e4 {[%emt 0:00:00]} e6 {[%emt 0:00:05]} 2. d4 {[%emt 0:00:05]} d5 {[%emt 0:00:02]} 3. exd5 {[%emt 0:00:01]} exd5 {[%emt 0:00:02]} 4. Nf3 {[%emt 0:00:02]} Nc6 {[%emt 0:00:06]} 5. Nc3 {[%emt 0:00:01]} Bb4 {[%emt 0:01:22]} 6. Bd3 {[%emt 0:00:05]} Nge7 {[%emt 0:01:20]} 7. O-O {[%emt 0:00:05]} O-O {[%emt 0:00:11]} 8. Ne2 {[%emt 0:00:18]} Bf5 {[%emt 0:01:09]} 9. Ng3 {[%emt 0:00:29]} Bg6 {[%emt 0:00:35]} 10. c3 {[%emt 0:01:15]} Bd6 {[%emt 0:00:04]} 11. Nh4 {[%emt 0:00:30]} Qd7 {[%emt 0:00:31]} 12. f4 {[%emt 0:02:50]} Bxd3 {[%emt 0:00:21]} 13. Qxd3 {[%emt 0:00:03]} Rae8 {[%emt 0:00:10]} 14. f5 {[%emt 0:00:33]} f6 {[%emt 0:00:07]} 15. Nh5 {[%emt 0:00:32]} Nc8 {[%emt 0:00:54]} 16. Bf4 {[%emt 0:03:34]} Qf7 {[%emt 0:00:43]} 17. Qf3 {[%emt 0:00:45]} Re4 {[%emt 0:00:29]} 18. Rae1 {[%emt 0:01:36]} Rfe8 {[%emt 0:00:06]} 19. Rxe4 {[%emt 0:00:04]} Rxe4 {[%emt 0:00:03]} 20. g4 {[%emt 0:00:46]} Nd8 {[%emt 0:02:33]} 21. Bc1 {[%emt 0:01:17]} c6 {[%emt 0:00:29]} 22. g5 {[%emt 0:00:06]} Rxh4 {[%emt 0:00:12]} 23. Ng3 {[%emt 0:00:28]} Qe7 {[%emt 0:00:54]} 24. gxf6 {[%emt 0:00:07]} gxf6 {[%emt 0:00:10]} 25. Kh1 {[%emt 0:00:08]} Kh8 {[%emt 0:00:17]} 26. Rg1 {[%emt 0:01:20]} Qe4 {[%emt 0:00:25]} 27. Qxe4 {[%emt 0:00:09]} dxe4 {[%emt 0:00:13]} 28. Be3 {[%emt 0:00:05]} Ne7 {[%emt 0:00:15]} 29. Kg2 {[%emt 0:00:01]} Nf7 {[%emt 0:00:41]} 30. c4 {[%emt 0:00:05]} Rg4 {[%emt 0:00:37]} 31. Kh3 {[%emt 0:00:05]} Rg8 {[%emt 0:01:35]} 32. Nxe4 {[%emt 0:00:02]} Rxg1 {[%emt 0:00:05]} 33. Bxg1 {[%emt 0:00:01]} Kg7 {[%emt 0:00:03]} 34. b3 {[%emt 0:00:17]} Nxf5 {[%emt 0:00:10]} 35. Kg4 {[%emt 0:00:02]} N7h6+ {[%emt 0:00:19]} 36. Kh5 {[%emt 0:00:01]} Be7 {[%emt 0:00:05]} 37. d5 {[%emt 0:00:02]} cxd5 {[%emt 0:00:09]} 38. cxd5 {[%emt 0:00:00]} b6 {[%emt 0:00:02]} 39. Bf2 {[%emt 0:00:12]} Nf7 {[%emt 0:00:03]} 40. Kg4 {[%emt 0:00:07]} Kg6 {[%emt 0:00:05]} 41. h4 {[%emt 0:00:02]} h5+ {[%emt 0:00:03]} 42. Kf4 {[%emt 0:00:01]} Ne5 {[%emt 0:00:13]} 43. Bg1 {[%emt 0:00:17]} Nd3+ {[%emt 0:00:16]} 44. Kf3 {[%emt 0:00:01]} Nb4 {[%emt 0:00:01]} 45. Nc3 {[%emt 0:00:04]} Nxh4+ {[%emt 0:00:11]} 46. Kg3 {[%emt 0:00:07]} Nf5+ {[%emt 0:00:02]} 47. Kf3 {[%emt 0:00:06]} Bc5 {[%emt 0:00:05]} 48. Bh2 {[%emt 0:00:02]} Bd4 {[%emt 0:00:03]} 49. Nb5 {[%emt 0:00:02]} Nxd5 {[%emt 0:00:04]} 50. Nxd4 {[%emt 0:00:03]} Nxd4+ {[%emt 0:00:07]} 51. Ke4 {[%emt 0:00:01]} Nxb3 {[%emt 0:00:21]} 52. Kxd5 {[%emt 0:00:07]} Nc1 {[%emt 0:00:02]} 53. a4 {[%emt 0:00:05]} Nd3 {[%emt 0:00:02]} 54. Kc4 {[%emt 0:00:05]} Nb2+ {[%emt 0:00:06]} 55. Kb3 {[%emt 0:00:14]} Nd1 {[%emt 0:00:04]} 56. Bb8 {[%emt 0:00:07]} a6 {[%emt 0:00:02]} 57. Kb4 {[%emt 0:00:05]} Nb2 {[%emt 0:00:03]} 58. Bc7 {[%emt 0:00:06]} b5 {[%emt 0:00:04]} 59. axb5 {[%emt 0:00:05]} axb5 {[%emt 0:00:00]} 60. Kxb5 {[%emt 0:00:01]} Kg5 {[%emt 0:00:03]} 61. Kb4 {[%emt 0:00:03]} f5 {[%emt 0:00:01]} 62. Kc3 {[%emt 0:00:01]} Na4+ {[%emt 0:00:02]} 63. Kd2 {[%emt 0:00:09]} f4 {[%emt 0:00:03]} 64. Ke2 {[%emt 0:00:02]} Kg4 {[%emt 0:00:01]} 65. Kf2 {[%emt 0:00:02]} h4 {[%emt 0:00:01]} 66. Be5 {[%emt 0:00:04]} Nb6 {[%emt 0:00:06]} 67. Bd4 {[%emt 0:00:04]} Nd5 {[%emt 0:00:02]} 68. Kg2 {[%emt 0:00:00]} h3+ {[%emt 0:00:03]} 69. Kh2 {[%emt 0:00:02]} Nc7 {[%emt 0:00:03]} 70. Be5 {[%emt 0:00:05]} Ne6 {[%emt 0:00:01]} 71. Bd6 {[%emt 0:00:06]} Ng5 {[%emt 0:00:02]} 72. Bc7 {[%emt 0:00:17]} f3 {[%emt 0:00:02]} 73. Bb6 {[%emt 0:00:08]} Ne4 {[%emt 0:00:02]} 74. Kg1 {[%emt 0:00:03]} Nc3 {[%emt 0:00:04]} 75. Kf2 {[%emt 0:00:08]} h2 {[%emt 0:00:05]} 0-1

[Event "European Online Club-ch-B 2021"]
[Site "Online"]
[Date "2021.03.27"]
[Round "1.17"]
[White "Gorodetzky, David"]
[Black "Efimov, Igor"]
[Result "1-0"]
[ECO "B07"]
[WhiteElo "2495"]
[BlackElo "2416"]
[Annotator "ChessBase"]
[PlyCount "101"]
[EventDate "2021.03.27"]
[EventType "team-tourn"]
[EventCountry "NET"]
[SourceTitle "playchess.com"]
[Source "ChessBase"]
[SourceQuality "1"]
[TimeControl "900+5"]

1. d4 {[%emt 0:00:00]} d6 {[%emt 0:00:06]} 2. e4 {[%emt 0:00:08]} Nf6 {[%emt 0:00:03]} 3. Nc3 {[%emt 0:00:02]} e5 {[%emt 0:00:06]} 4. Nge2 {[%emt 0:00:31]} Nc6 {[%emt 0:00:10]} 5. h3 {[%emt 0:00:06]} g6 {[%emt 0:01:14]} 6. d5 {[%emt 0:00:20]} Ne7 {[%emt 0:00:07]} 7. g4 {[%emt 0:00:04]} Nd7 {[%emt 0:00:06]} 8. h4 {[%emt 0:00:31]} h5 {[%emt 0:00:23]} 9. gxh5 {[%emt 0:00:05]} Rxh5 {[%emt 0:00:13]} 10. Ng3 {[%emt 0:00:03]} Rh8 {[%emt 0:00:02]} 11. h5 {[%emt 0:01:01]} Nf6 {[%emt 0:00:05]} 12. Bg5 {[%emt 0:00:13]} Neg8 {[%emt 0:00:39]} 13. Qf3 {[%emt 0:03:03]} Be7 {[%emt 0:01:32]} 14. hxg6 {[%emt 0:00:17]} Rxh1 {[%emt 0:00:04]} 15. gxf7+ {[%emt 0:00:07]} Kxf7 {[%emt 0:00:01]} 16. Qxh1 {[%emt 0:00:01]} Qf8 {[%emt 0:00:28]} 17. Bh3 {[%emt 0:00:22]} Qg7 {[%emt 0:00:46]} 18. Bxc8 {[%emt 0:00:05]} Rxc8 {[%emt 0:00:23]} 19. Qh3 {[%emt 0:00:53]} Re8 {[%emt 0:00:07]} 20. Qe6+ {[%emt 0:00:36]} Kf8 {[%emt 0:00:02]} 21. Qf5 {[%emt 0:00:02]} Nh6 {[%emt 0:00:08]} 22. Bxh6 {[%emt 0:00:03]} Qxh6 {[%emt 0:00:01]} 23. Ke2 {[%emt 0:00:03]} Qh7 {[%emt 0:00:10]} 24. Qf3 {[%emt 0:00:27]} Qg6 {[%emt 0:00:09]} 25. Rh1 {[%emt 0:00:11]} Kf7 {[%emt 0:00:20]} 26. Nf5 {[%emt 0:00:05]} a6 {[%emt 0:00:57]} 27. Rh3 {[%emt 0:01:10]} b5 {[%emt 0:02:20]} 28. Nd1 {[%emt 0:00:06]} Bd8 {[%emt 0:00:44]} 29. Nde3 {[%emt 0:00:14]} Rf8 {[%emt 0:00:14]} 30. Rg3 {[%emt 0:00:23]} Qh5 {[%emt 0:00:05]} 31. Rg7+ {[%emt 0:00:05]} Ke8 {[%emt 0:00:02]} 32. Re7+ {[%emt 0:00:09]} Bxe7 {[%emt 0:00:04]} 33. Ng7+ {[%emt 0:00:02]} Kd8 {[%emt 0:00:06]} 34. Nxh5 {[%emt 0:00:01]} Nxd5 {[%emt 0:00:02]} 35. Nxd5 {[%emt 0:00:07]} Rxf3 {[%emt 0:00:02]} 36. Kxf3 {[%emt 0:00:01]} Bg5 {[%emt 0:00:02]} 37. Ne3 {[%emt 0:00:05]} c6 {[%emt 0:00:04]} 38. Kg4 {[%emt 0:00:02]} Bh6 {[%emt 0:00:07]} 39. Kf5 {[%emt 0:00:07]} Ke7 {[%emt 0:00:07]} 40. b3 {[%emt 0:00:19]} Kf7 {[%emt 0:00:14]} 41. c4 {[%emt 0:00:10]} Bf8 {[%emt 0:00:16]} 42. Nf6 {[%emt 0:00:11]} Bh6 {[%emt 0:00:16]} 43. Nd7 {[%emt 0:00:46]} bxc4 {[%emt 0:00:21]} 44. bxc4 {[%emt 0:00:21]} Ke7 {[%emt 0:00:22]} 45. Nb8 {[%emt 0:00:02]} Kd8 {[%emt 0:00:03]} 46. Nxc6+ {[%emt 0:00:04]} Kc7 {[%emt 0:00:01]} 47. Na5 {[%emt 0:00:18]} Kb6 {[%emt 0:00:03]} 48. Nb3 {[%emt 0:00:01]} a5 {[%emt 0:00:01]} 49. Nd5+ {[%emt 0:00:11]} Kc6 {[%emt 0:00:04]} 50. a4 {[%emt 0:00:03]} Bf8 {[%emt 0:00:13]} 51. Kg6 {[%emt 0:00:02]} 1-0

[Event "European Online Club-ch-B 2021"]
[Site "Online"]
[Date "2021.03.27"]
[Round "1.18"]
[White "Bagheri, Amir"]
[Black "Parkhov, Yair"]
[Result "1-0"]
[ECO "A46"]
[WhiteElo "2348"]
[BlackElo "2407"]
[Annotator "NA"]
[PlyCount "107"]
[EventDate "2021.03.27"]
[EventType "team-tourn"]
[EventCountry "NET"]
[SourceTitle "playchess.com"]
[Source "ChessBase"]
[SourceQuality "1"]
[TimeControl "900+5"]

1. d4 {[%emt 0:00:00]} Nf6 {[%emt 0:00:06]} 2. Nf3 {[%emt 0:00:03]} d6 {[%emt 0:00:03]} 3. Bg5 {[%emt 0:00:09]} Nbd7 {[%emt 0:00:01]} 4. Nbd2 {[%emt 0:00:03]} e5 {[%emt 0:00:02]} 5. e3 {[%emt 0:00:16]} h6 {[%emt 0:00:04]} 6. Bh4 {[%emt 0:00:12]} Be7 {[%emt 0:00:04]} 7. c4 {[%emt 0:00:22]} O-O {[%emt 0:00:11]} 8. Qc2 {[%emt 0:00:33]} Re8 {[%emt 0:00:53]} 9. Be2 {[%emt 0:00:25]} Nh5 {[%emt 0:00:51]} 10. Bxe7 {[%emt 0:00:04]} Qxe7 {[%emt 0:00:02]} 11. O-O {[%emt 0:00:28]} Nhf6 {[%emt 0:00:29]} 12. Rfd1 {[%emt 0:00:20]} e4 {[%emt 0:00:41]} 13. Ne1 {[%emt 0:00:06]} Nf8 {[%emt 0:00:01]} 14. b4 {[%emt 0:00:16]} Bg4 {[%emt 0:00:23]} 15. Nf1 {[%emt 0:00:41]} Ng6 {[%emt 0:00:46]} 16. Bxg4 {[%emt 0:00:48]} Nxg4 {[%emt 0:00:00]} 17. h3 {[%emt 0:00:09]} Nf6 {[%emt 0:00:03]} 18. Ng3 {[%emt 0:00:01]} Nh4 {[%emt 0:00:07]} 19. a4 {[%emt 0:00:23]} Nh7 {[%emt 0:00:26]} 20. d5 {[%emt 0:00:14]} f5 {[%emt 0:01:23]} 21. c5 {[%emt 0:00:03]} Nf6 {[%emt 0:01:42]} 22. Rac1 {[%emt 0:00:49]} Rad8 {[%emt 0:00:13]} 23. cxd6 {[%emt 0:01:20]} cxd6 {[%emt 0:00:00]} 24. Qc7 {[%emt 0:00:10]} Rd7 {[%emt 0:00:07]} 25. Qa5 {[%emt 0:00:02]} b6 {[%emt 0:02:19]} 26. Qb5 {[%emt 0:00:03]} g5 {[%emt 0:00:26]} 27. Ne2 {[%emt 0:00:14]} Qe5 {[%emt 0:00:50]} 28. g3 {[%emt 0:00:23]} Nf3+ {[%emt 0:01:24]} 29. Kf1 {[%emt 0:02:02]} Rde7 {[%emt 0:00:34]} 30. a5 {[%emt 0:00:12]} bxa5 {[%emt 0:00:35]} 31. bxa5 {[%emt 0:00:03]} Nh5 {[%emt 0:00:07]} 32. Nxf3 {[%emt 0:01:02]} exf3 {[%emt 0:00:00]} 33. Nd4 {[%emt 0:00:02]} Nxg3+ {[%emt 0:00:12]} 34. Kg1 {[%emt 0:00:36]} g4 {[%emt 0:01:40]} 35. Nc6 {[%emt 0:00:31]} Ne2+ {[%emt 0:00:03]} 36. Kh1 {[%emt 0:00:02]} Qf6 {[%emt 0:00:09]} 37. Nxe7+ {[%emt 0:00:05]} Rxe7 {[%emt 0:00:08]} 38. Qb8+ {[%emt 0:00:17]} Kh7 {[%emt 0:00:25]} 39. Rc7 {[%emt 0:00:03]} Rxc7 {[%emt 0:00:20]} 40. Qxc7+ {[%emt 0:00:03]} Kg6 {[%emt 0:00:02]} 41. Qd7 {[%emt 0:00:43]} h5 {[%emt 0:00:09]} 42. Rb1 {[%emt 0:00:43]} Kg5 {[%emt 0:00:18]} 43. Qe6 {[%emt 0:00:28]} h4 {[%emt 0:00:05]} 44. Qg8+ {[%emt 0:00:25]} Kh5 {[%emt 0:00:07]} 45. Qh7+ {[%emt 0:00:39]} Kg5 {[%emt 0:00:02]} 46. Qg8+ {[%emt 0:00:16]} Kh6 {[%emt 0:00:01]} 47. hxg4 {[%emt 0:00:06]} Qg6 {[%emt 0:00:12]} 48. Qxg6+ {[%emt 0:00:08]} Kxg6 {[%emt 0:00:00]} 49. gxf5+ {[%emt 0:00:04]} Kxf5 {[%emt 0:00:01]} 50. Rb7 {[%emt 0:00:03]} Ke4 {[%emt 0:00:07]} 51. Rxa7 {[%emt 0:00:04]} Kd3 {[%emt 0:00:02]} 52. a6 {[%emt 0:00:09]} Kd2 {[%emt 0:00:01]} 53. Rf7 {[%emt 0:00:07]} Ke1 {[%emt 0:00:00]} 54. Rxf3 {[%emt 0:00:05]} 1-0

[Event "European Online Club-ch-B 2021"]
[Site "Online"]
[Date "2021.03.27"]
[Round "1.19"]
[White "Veinberg, Nimrod"]
[Black "Villegas, Pierre"]
[Result "0-1"]
[ECO "D37"]
[WhiteElo "2404"]
[BlackElo "2367"]
[Annotator "NA"]
[PlyCount "86"]
[EventDate "2021.03.27"]
[EventType "team-tourn"]
[EventCountry "NET"]
[SourceTitle "playchess.com"]
[Source "ChessBase"]
[SourceQuality "1"]
[TimeControl "900+5"]

1. d4 {[%emt 0:00:00]} d5 {[%emt 0:00:07]} 2. c4 {[%emt 0:00:04]} e6 {[%emt 0:00:03]} 3. Nc3 {[%emt 0:00:13]} a6 {[%emt 0:00:04]} 4. cxd5 {[%emt 0:00:05]} exd5 {[%emt 0:00:02]} 5. Nf3 {[%emt 0:00:03]} Nf6 {[%emt 0:00:05]} 6. Bg5 {[%emt 0:00:09]} Be6 {[%emt 0:00:02]} 7. e3 {[%emt 0:00:02]} Nbd7 {[%emt 0:00:05]} 8. Be2 {[%emt 0:00:31]} Bd6 {[%emt 0:00:16]} 9. O-O {[%emt 0:00:02]} c6 {[%emt 0:00:05]} 10. e4 {[%emt 0:00:28]} dxe4 {[%emt 0:00:12]} 11. Nxe4 {[%emt 0:00:01]} Be7 {[%emt 0:00:08]} 12. Ng3 {[%emt 0:00:05]} O-O {[%emt 0:00:37]} 13. Rc1 {[%emt 0:00:27]} h6 {[%emt 0:00:56]} 14. Bd2 {[%emt 0:00:57]} Qb6 {[%emt 0:00:37]} 15. b4 {[%emt 0:00:36]} Rfe8 {[%emt 0:01:38]} 16. Qc2 {[%emt 0:00:42]} Bd6 {[%emt 0:00:47]} 17. Rfe1 {[%emt 0:00:39]} Re7 {[%emt 0:02:02]} 18. a3 {[%emt 0:00:35]} Rae8 {[%emt 0:00:08]} 19. Bf1 {[%emt 0:01:34]} Bxg3 {[%emt 0:00:35]} 20. hxg3 {[%emt 0:00:00]} Bd5 {[%emt 0:00:02]} 21. Rxe7 {[%emt 0:02:41]} Rxe7 {[%emt 0:00:03]} 22. Be3 {[%emt 0:00:19]} Be4 {[%emt 0:01:46]} 23. Qb3 {[%emt 0:00:26]} Bd5 {[%emt 0:00:37]} 24. Qb2 {[%emt 0:00:34]} Bxf3 {[%emt 0:00:44]} 25. gxf3 {[%emt 0:00:00]} Nd5 {[%emt 0:00:02]} 26. Re1 {[%emt 0:00:23]} Qd8 {[%emt 0:00:07]} 27. Bd2 {[%emt 0:00:39]} Rxe1 {[%emt 0:00:14]} 28. Bxe1 {[%emt 0:00:00]} Qf6 {[%emt 0:00:01]} 29. Kg2 {[%emt 0:00:40]} Nf8 {[%emt 0:00:08]} 30. Bc4 {[%emt 0:00:31]} Ne6 {[%emt 0:00:09]} 31. Bxd5 {[%emt 0:00:02]} cxd5 {[%emt 0:00:01]} 32. Bc3 {[%emt 0:00:08]} Qf5 {[%emt 0:00:44]} 33. Qe2 {[%emt 0:00:20]} g6 {[%emt 0:01:43]} 34. a4 {[%emt 0:00:08]} h5 {[%emt 0:00:17]} 35. b5 {[%emt 0:00:15]} axb5 {[%emt 0:00:03]} 36. Qxb5 {[%emt 0:00:02]} h4 {[%emt 0:00:46]} 37. Qe2 {[%emt 0:00:16]} Ng5 {[%emt 0:00:26]} 38. g4 {[%emt 0:02:40]} Qf4 {[%emt 0:00:40]} 39. Bd2 {[%emt 0:00:45]} h3+ {[%emt 0:00:03]} 40. Kf1 {[%emt 0:00:07]} h2 {[%emt 0:00:49]} 41. Qe8+ {[%emt 0:00:03]} Kh7 {[%emt 0:00:04]} 42. Bxf4 {[%emt 0:00:12]} h1=Q+ {[%emt 0:00:03]} 43. Ke2 {[%emt 0:00:02]} Qxf3+ {[%emt 0:00:01]} 0-1